Cogmind - Beta 10 @@@ ROGUE MODE // 2020.09.19 @ 00:55:48 Player: Sysh Result: Destroyed by G-34 Mercenary with Small Laser Performance ------------- Evolutions (0) 0 Regions Visited (1) 200 Robots Destroyed (12) 60 Value Destroyed (200) 200 Prototype IDs (0) 0 Alien Tech Used (0) 0 Bonus (0) 0 TOTAL SCORE: 460 Bonus ------- None Cogmind --------- Core Integrity 0/250 Matter 289/300 Energy 100/100 System Corruption 1% Temperature Cool (77) Movement Core (100) Ox1 Location -10/Materials Parts ------- > --- POWER (1) -------- (None) > --- PROPULSION (2) --- (None) > --- UTILITY (2) ------ Small Storage Unit > --- WEAPON (2) ------- (None) > --- INVENTORY (6) ---- Wheel Peak State ------------ > --- POWER ------------ Light Ion Engine > --- PROPULSION ------- Light Treads Light Treads > --- UTILITY ---------- Small Storage Unit Improved Terrain Scanner > --- WEAPON ----------- Small Laser Light Assault Rifle > --- INVENTORY -------- Ion Engine Aluminum Leg Aluminum Leg Wheel Wheel Assault Rifle [Rating: 8] Favorites ----------- Power Light Ion Engine Engine Light Ion Engine Propulsion Light Treads Treads Light Treads Leg Aluminum Leg Wheel Wheel Utility Small Storage Unit Device Improved Terrain Scanner Storage Small Storage Unit Weapon Light Assault Rifle Energy Gun Small Laser Ballistic Gun Light Assault Rifle Special Weapon Mining Laser Special Melee Weapon Datajack Build | -11 -10 ------- Run | Scr Mat Slots Evolved . | . . Power . | . . Propulsion . | . . Utility . | . . Weapon . | . . Parts Attached 18 | 9 9 Power 2 | 1 1 Engine 2 | 1 1 Core . | . . Reactor . | . . Propulsion 5 | 2 3 Treads 2 | 2 . Leg 2 | . 2 Wheel 1 | . 1 Hover . | . . Flight . | . . Utility 2 | 2 . Device 1 | 1 . Storage 1 | 1 . Processor . | . . Hackware . | . . Protection . | . . Artifact . | . . Weapon 9 | 4 5 Energy Gun 4 | 2 2 Energy Cannon . | . . Ballistic Gun 3 | 1 2 Ballistic Cannon . | . . Launcher . | . . Special Weapon 1 | 1 . Impact Weapon . | . . Slashing Weapon . | . . Piercing Weapon . | . . Special Melee Weapon 1 | . 1 Unidentified Prototypes . | . . Parts Lost 15 | 1 14 Power 2 | . 2 Propulsion 5 | . 5 Utility 1 | . 1 Weapon 7 | 1 6 Highest Loss Streak 13 | 1 13 Average Slot Usage (%) 97 | . 97 Engine 13 | . 13 Treads 25 | . 25 Leg 2 | . 2 Device 12 | . 12 Storage 14 | . 14 Energy Gun 11 | . 11 Ballistic Gun 14 | . 14 Special Melee Weapon 1 | . 1 Naked Turns . | . . Heaviest Build 11 | 10 11 Greatest Support 40 | 40 40 Greatest Overweight (x) 3 | . 3 Average Overweight (x) . | . . Largest Inventory Capacity 6 | 6 6 Average Capacity 5 | 5 6 Most Carried 6 | 6 6 Average Carried 5 | 5 5 Final Capacity 6 | 6 6 Final Carried 6 | 6 1 Class Distribution -------------------- 100% | Mutant Dominant Class ---------------- Mutant | -10/Materials Resources | -11 -10 ----------- Run | Scr Mat Matter Collected 368 | 283 85 Remotely . | . . Salvage Created 362 | 149 213 Parts 28 | 13 15 Haulers Intercepted . | . . Recyclers Shooed . | . . Parts Field Recycled . | . . Retrieved Matter . | . . Parts Self-Destructed . | . . Prevented . | . . Kills | -11 -10 ------- Run | Scr Mat Combat Hostiles Destroyed 7 | . 7 Guns 7 | . 7 Classes Destroyed 4 | 2 2 Tunneler 4 | 4 . Recycler 1 | 1 . Swarmer 3 | . 3 Grunt 4 | . 4 Best Kill Streak 3 | 2 3 Combat Bots Only 3 | . 3 Max Kills in Single Turn 1 | 1 1 Gunslinging . | . . Exploded . | . . Melee . | . . Uniques/NPCs Destroyed . | . . Combat | -11 -10 -------- Run | Scr Mat Damage Taken 1464 | 176 1288 Core 258 | . 258 Absorbed by Shields . | . . Core Remaining (%) 100 | 100 . Volleys Fired 79 | 34 45 Largest 2 | 2 2 Hottest 100 | 100 60 Shots Fired 124 | 49 75 Gun 105 | 30 75 Cannon . | . . Launcher . | . . Special 19 | 19 . Kinetic 68 | 15 53 Thermal 56 | 34 22 Explosive . | . . Electromagnetic . | . . Robot Hit Streak 7 | 7 7 Robot Miss Streak 8 | 3 8 Penetration Max . | . . Secondary Targets 1 | . 1 Max Gunslinging Chain 1 | . 1 Shots Hit Robots 64 | 22 42 Core Hits 24 | 7 17 Critical Hits . | . . Critical Kills . | . . Critical Parts Destroyed . | . . Melee Attacks 3 | . 3 Impact . | . . Slashing . | . . Piercing . | . . Sneak Attacks . | . . Combat Hostiles . | . . Follow-up Attacks . | . . Damage Inflicted 606 | 181 425 Guns 597 | 180 417 Cannons . | . . Explosions . | . . Melee . | . . Ramming 9 | 1 8 Kinetic 292 | 73 219 Thermal 305 | 107 198 Explosive . | . . Electromagnetic . | . . Impact . | . . Slashing . | . . Piercing . | . . Highest Corruption 1 | 1 1 Average Corruption 1 | 1 1 Corruption Purged . | . . Effects 3 | 1 2 Message Errors 2 | 1 1 Data Loss (minor) 1 | . 1 Overload Shots . | . . Overflow Damage . | . . Projectiles . | . . Explosions . | . . Melee . | . . Knockbacks . | . . Impact . | . . Kinetic . | . . Secondary . | . . Self-Inflicted Damage 2 | . 2 Shots . | . . Rammed 3 | 1 2 Targets Rammed 4 | 1 3 Kicked 1 | . 1 Crushed . | . . Highest Temperature 146 | 40 146 Average Temperature 29 | 12 52 Received Heat Transfer 528 | . 528 Siege Activations . | . . Robots Corrupted . | . . Combat Hostiles . | . . Parts Fried . | . . Impact Corruptions . | . . Robots Melted . | . . Combat Hostiles . | . . Parts Melted 1 | . 1 Heat Transferred 748 | 250 498 Parts Sabotaged . | . . Parts Stolen . | . . Parts Stripped . | . . Power Chain Reactions . | . . Missiles Intercepted . | . . Alert | -11 -10 ------- Run | Scr Mat Peak Influence 89 | 25 89 Initial . | . . Average 24 | 5 48 Maximum Alert Level . | . . Low Security (%) 100 | 100 100 Level 1 . | . . Level 2 . | . . Level 3 . | . . Level 4 . | . . Level 5 . | . . High Security . | . . Max Security . | . . Squads Dispatched 3 | . 3 Investigation 3 | . 3 Extermination . | . . Reinforcement . | . . Assault . | . . Garrison . | . . Intercept . | . . Construction Impeded . | . . Haulers Reinforced . | . . Stealth | -11 -10 --------- Run | Scr Mat Distress Signals . | . . Communications Jammed . | . . Distress Signals . | . . Times Spotted 18 | . 18 Peak Tracking Total 6 | . 6 Tactical Retreats 1 | . 1 Traps | -11 -10 ------- Run | Scr Mat Traps Triggered 3 | . 3 Indirectly . | . . Trap Hack Attempts . | . . Triggered . | . . Disarmed . | . . Reprogrammed . | . . Reused . | . . Traps Extracted . | . . Installed . | . . Triggered . | . . Machines | -11 -10 ---------- Run | Scr Mat Machines Disabled . | . . Max in Single Turn . | . . Machines Sabotaged . | . . Garrisons Compromised . | . . Overloaded Fab Kills . | . . Fab Network Shutdowns . | . . Hacking | -11 -10 --------- Run | Scr Mat Machines Accessed 3 | . 3 Terminals 2 | . 2 Fabricators . | . . Repair Stations . | . . Recycling Units 1 | . 1 Scanalyzers . | . . Garrison Access . | . . Total Hacks 11 | . 11 Successful 8 | . 8 Failed 3 | . 3 Catastrophic . | . . Database Lockouts . | . . Manual . | . . Terminals 9 | . 9 Fabricators . | . . Repair Stations . | . . Recycling Units 2 | . 2 Scanalyzers . | . . Garrison Access . | . . Terminal Hacks 6 | . 6 Record 4 | . 4 Emergency Access Points 1 | . 1 Zone Layout 1 | . 1 Fabricator Hacks . | . . Repair Station Hacks . | . . Recycling Unit Hacks 2 | . 2 Report Inventory 1 | . 1 Retrieve Components 1 | . 1 Scanalyzer . | . . Garrison Access Hacks . | . . Unauthorized Hacks . | . . Terminals . | . . Fabricators . | . . Repair Stations . | . . Recycling Units . | . . Scanalyzers . | . . Garrison Access . | . . Data Cores Recovered . | . . Used . | . . Hacking Detections 3 | . 3 Full Trace Events . | . . Feedback Events . | . . Feedback Blocked . | . . Robot Schematics Acquired . | . . Robots Built . | . . Matter . | . . Time . | . . Total Robot Build Rating . | . . Part Schematics Acquired . | . . Parts Built . | . . Matter . | . . Time . | . . Total Part Build Rating . | . . Parts Repaired . | . . Time . | . . Parts Recycled . | . . Recycled Matter . | . . Retrieved Matter . | . . Retrieved Components 7 | . 7 Parts Scanalyzed . | . . Part Schematics Acquired . | . . Parts Damaged . | . . Bothacking | -11 -10 ------------ Run | Scr Mat Used RIF Installer . | . . Robots Hacked . | . . Non-combat . | . . Combat . | . . Robot Hacks Applied . | . . Relay Couplers Released . | . . Robots Rewired . | . . Allies Hacked . | . . Hacks Repelled . | . . Allies | -11 -10 -------- Run | Scr Mat Total Allies . | . . Largest Group . | . . Highest-Rated Group . | . . Highest-Rated Ally . | . . Total Orders . | . . Ally Attacks . | . . Total Damage . | . . Kills . | . . Allies Corrupted . | . . Allies Melted . | . . Intel | -11 -10 ------- Run | Scr Mat Robot Analysis Total . | . . Derelict Logs Recovered . | . . Drone Launches . | . . Drone Recoveries . | . . Exploration | -11 -10 ------------- Run | Scr Mat Turns Passed 1486 | 844 642 Spaces Moved 761 | 442 319 Core 5 | 4 1 Treads 752 | 438 314 Legs 4 | . 4 Wheels . | . . Hover . | . . Flight . | . . Fastest Speed 50 | 50 120 Average Speed 159 | 159 159 Slowest Speed 200 | 160 200 Overloaded Moves . | . . Propulsion Burnouts . | . . Robots Hopped . | . . Cave-ins Triggered 1 | 1 . Exploration Rate (%) 37 | 23 52 Regions Visited 1 Branch Regions . Pre-discovered Areas . | . . Known Exits Taken . | . . Unknown Exits Taken 1 | 1 . Scrap Searched . | . . Spaces Dug 6 | 6 . Terrain Destroyed 7 | 7 . Melee . | . . Projectile 7 | 7 . AOE . | . . Terrain Rammed . | . . Walls Destroyed . | . . Machines Disabled . | . . Actions | -11 -10 --------- Run | Scr Mat Total 880 | 496 384 Wait . | . . Move 760 | 441 319 Hop . | . . Pick Up 14 | 10 4 Fast Attach 5 | 5 . Attach 11 | 3 8 Detach . | . . Swap 2 | 1 1 Drop 2 | 1 1 Fire 79 | 34 45 Melee 3 | . 3 Ram . | . . Kick 3 | . 3 Crush 1 | 1 . Escape Stasis . | . . Rewire . | . . Trap . | . . Miscellaneous . | . . Route ------- -11/Scrapyard -10/Materials (discovered 2 exits: [*Mat] / [*Min]) History --------- Turn | Location | Event 5 | -11/Scrapyard | Discovered new exit (range 15) 651 | -11/Scrapyard | Crushed by falling debris 845 | -11/Scrapyard | Entered Materials 846 | -10/Materials | Build established: Mutant 975 | -10/Materials | Discovered new exit (range 15) 1103 | -10/Materials | Discovered new exit (range 13) 1448 | -10/Materials | Core integrity fell below 50% 1458 | -10/Materials | Core integrity fell below 20% 1487 | -10/Materials | Destroyed by G-34 Mercenary with Small Laser Last Messages --------------- U-05 Engineer lays Concrete. Lgt. Treads destroyed. Acquired Lgt. Assault Rifle. Lgt. Assault Rifle destroyed. Aluminum Leg destroyed. Slammed into S-10 Pest. Kicked S-10 Pest out of the way. Slammed into S-10 Pest. K-01 Serf collects debris. Acquired Med. Laser. Lgt. Assault Rifle destroyed. K-01 Serf collects debris. S-10 Pest destroyed. R-06 Scavenger collects Ion Engine. Wheel destroyed. K-01 Serf collects debris. Med. Laser destroyed. Aluminum Leg destroyed. Ion Engine destroyed. R-06 Scavenger collects Aluminum Leg. Map ----- +----------------------------------------------------+ | #?# #" #?#??????# # #?#???????? | | #?# #"" #??#???#?# # #?????#???? | | "" #?# # #????#?### # #?????#???? | | """ #?# #"" < #????????# # #?##??????? | | "" #?# # ! #??#?????# ###########?????????? | | #?# #"" #????????# # #????#????? | | ####### #" ########?# # !! ##????????? | | # #### ## #?#%% # ! #???????#?? | | ??????? ????? ???????????# # #?????????? | | ??????? ????????????????## ####+############??#? | | ?????????????????????????# + =#???? | | ??????????????????? ????## # """"" #???? | | ???????????????????????#?# # """"" #???? | | ???????????????#?????????# # """"" #???? | | ???????????" ###### + !#?#?? | | ??????????? *% # """"" #???? | | ??????????? #######r######### """"" #???? | | ????????????????????????# %= #??# """"" #???? | | ????????????????????? ??# """" #??# #???? | | ????????????????????????# """" #??##########???? | | ????????????????????????#k """" #????#??????????? | | ????????????????????????# #???????????????? | | ????????????????????????# g"""" #??????????#????? | | ??????????????????"?????# """" #????????????#??? | | ????????????????????????#sgg"""" #???????????????? | | ????????????????????????#@%s #??#????????????? | | ????????????????????????##########???????????????? | | ??????????????????????????? ???????#?????????????? | | ?????????????????????????????????????????????????? | | ?????????????????????????????#??????#????????????? | | ?????????????????????????????????? ??????????????? | | ?????????????????????????????????????????????????? | | ?????????????????????????????????????????????????? | | ?????????????????????????????????????????????????? | | ?????????????????????????????????????????????????? | | ?????????????????????????????????????????????????? | | ?????????????????????????????????????????????????? | | ?????????????????????????????????????????????????? | | ?????????????????????????????????????????????????? | | ?????????????????????????????????????????????????? | | ?????????????????????????????????????????????????? | | | | | | | | | | | | | | | | | | | +----------------------------------------------------+ Best States ------------- Heat Dissipation 25 Energy Generation 10 Energy Capacity 250 Matter Stores 300 Matter Capacity 300 Sight Range 16 Terrain Scan Range 16 Terrain Scan Density 10 Evasion (%) 40 Recoil Reduction 2 Item Schematics ----------------- None Robot Schematics ------------------ None Fabricated ------------ Nothing Alien Tech Used ----------------- None Achievements -------------- Unlikely Earthworm Challenges ------------ None Game ------ Seed TerrainGodBooster Manual? 0 Play Time 00:11:41 Cumulative 4.7 hours Start 2020.09.19 @ 00:44:59 End 2020.09.19 @ 00:55:48 Sessions 1 Manual Loads 0 Difficulty Rogue Special Mode None Game No. 16 Rogue 16 Adventurer 0 Explorer 0 Win Type - Total 0 Types 0/0/0/0/0/0/0/0/0 Lore% 3 Gallery% 9 Achievement% 4 Wizard Run 0 Options --------- ASCII 0 Keyboard 0 Movement Numpad Keybinds 0 Fullscreen 1 Font 18/SmallcapsGlow Map View 76x50 Tactical HUD 0 Map Filters NONE Filters NONE Steam 1 RUN: 1aec65df-c378-4404-8bde-cef5ddf14620